fUST/lending_fUST_20250530
["ID","MTS","AMOUNT","RATE_DAILY","PERIOD"]
[362959473,1748536240700,-215.0738,0.00024823,2]
[362959475,1748536240710,-430.0,0.00024835,2]
[362959477,1748536240719,-12937.84635835,0.00024887,3]
[362959478,1748536240728,-299095.23088827,0.00024888,2]
[362959480,1748536240738,-208446.87799142,0.00024888,2]
[362959482,1748536240748,-10000.0,0.00024899,2]
[362959484,1748536240757,-3301.27439247,0.000249,2]
[362959486,1748536240767,-427.73,0.000249,2]
[362959488,1748536240777,-371.71,0.000249,7]
[362959490,1748536240786,-229.26895353,0.000249,3]
[362959492,1748536240795,-212.70147903,0.000249,3]
[362959494,1748536240805,-631.91291181,0.000249,2]
[362959496,1748536240815,-423.31762986,0.000249,3]
[362959498,1748536240824,-164.76057273,0.000249,2]
[362959500,1748536240833,-278.95888249,0.000249,2]
[362959502,1748536240842,-260826.01521241,0.000249,2]
[362959512,1748536240935,-294666.03535659,0.000249,2]
[362959514,1748536240945,-152.51,0.000249,31]
[362959516,1748536240954,-152.51,0.000249,31]
[362959518,1748536240965,-152.51,0.000249,31]
[362959520,1748536240974,-152.51,0.000249,31]
[362959522,1748536240983,-152.51,0.000249,31]
[362959524,1748536240993,-152.51,0.000249,31]
[362959526,1748536241002,-152.51,0.000249,31]
[362959528,1748536241012,-152.51,0.000249,31]
[362959530,1748536241021,-500.0,0.000249,2]
[362959532,1748536241030,-256.91248318,0.000249,12]
[362959534,1748536241039,-505.0,0.000249,7]
[362959536,1748536241049,-500.0,0.00024907,15]
[362959538,1748536241058,-631.91291172,0.00024909,2]
[362959539,1748536241067,-631.91291172,0.00024918,2]
[362959541,1748536241079,-1502.733787,0.0002492,5]
[362959543,1748536241090,-631.91291172,0.00024926,2]
[362959545,1748536241099,-445.82,0.00024931,2]
[362959547,1748536241108,-631.91291172,0.00024935,2]
[362959549,1748536241119,-1000.0,0.0002494,5]
[362959551,1748536241128,-631.91291172,0.00024944,2]
[362959553,1748536241136,-631.91291172,0.00024953,2]
[362959555,1748536241146,-1000.0,0.0002496,5]
[362959557,1748536241155,-631.91291172,0.00024961,2]
[362959559,1748536241164,-631.91291172,0.0002497,2]
[362959561,1748536241174,-200.0,0.00024979,120]
[362959562,1748536241184,-631.91291172,0.00024979,2]
[362959564,1748536241193,-1000.0,0.0002498,5]
[362959566,1748536241202,-1110.046307,0.0002498,5]
[362959568,1748536241211,-95566.53459567,0.00024981,2]
[362959570,1748536241221,-150.0,0.00024983,2]
[362959572,1748536241230,-150.0,0.00024983,2]
[362959574,1748536241240,-491.976,0.00024986,2]
[362959576,1748536241250,-961.0,0.00024986,2]
[362959578,1748536241259,-842.5625,0.0002499,3]
[362959580,1748536241268,-500.0,0.0002499,30]
[362959582,1748536241278,-160.0,0.00024999,2]
[362959584,1748536241287,-160.43817396,0.00024999,2]
[362959586,1748536241296,-1591423.64459112,0.00025,30]
[362959591,1748536241334,-866.65810415,0.00025,30]
[362959593,1748536241346,-1806.41131233,0.00025,30]
[362959666,1748536242292,-115.41418151,0.00025,30]
[362959852,1748536243914,-708.43795877,0.00025,30]
[362959854,1748536243926,-813.62704925,0.00025,30]
[362959868,1748536244068,-134.51929305,0.00025,30]
[362959870,1748536244088,-994.5,0.00025,30]
[362959872,1748536244100,-14774.354829,0.00025,30]
[362959874,1748536244112,-714.78080813,0.00025,30]
[362959877,1748536244125,-1316.20865682,0.00025,30]
[362959881,1748536244159,-28633.31580684,0.00025,30]
[362960021,1748536245610,-9945.61189903,0.00022,2]
[362960073,1748536246054,-4270.94810097,0.00022,2]
[362960075,1748536246064,-14216.56,0.000233,2]
[362960077,1748536246074,-559.18,0.0002449,10]
[362960079,1748536246086,-14216.56,0.000245,2]
[362960081,1748536246099,-546.3,0.00024716,15]
[362960083,1748536246109,-510.0,0.00024907,120]
[362960085,1748536246119,-500271.18108728,0.00025,30]
[362960087,1748536246130,-14101.69827195,0.00025,30]
[362961835,1748536341067,1500.0,0.00016,10]
[362961836,1748536803135,1938.51957902,0.00016,2]
[362961837,1748536924627,261.12,0.0001537,2]
[362961839,1748536960007,155.82367301,6.3e-07,2]
[362961840,1748536960158,155.82367301,6.3e-07,2]
[362961841,1748536960311,155.82367301,6.3e-07,2]
[362961842,1748536960458,155.82367301,6.3e-07,2]
[362961843,1748536960611,155.82367301,6.3e-07,2]
[362961844,1748536960854,155.82367301,6.3e-07,2]
[362961845,1748536961017,155.82367301,6.3e-07,2]
[362961846,1748536961146,155.82367301,6.3e-07,2]
[362961847,1748536962129,155.82367301,6.3e-07,2]
[362961848,1748536962275,155.82367301,6.3e-07,2]
[362961849,1748536996191,256.37,0.00015368,2]
[362961851,1748537067804,251.71,0.00015309,2]
[362961852,1748537140503,247.14,0.00014715,2]
[362961853,1748537188785,2099.88710017,0.00016,2]
[362961854,1748537188808,2900.11289983,0.00016,2]
[362961855,1748537202127,403.1587557,0.00017861,120]
[362961856,1748537204581,5000.0,0.00016,2]
[362961857,1748537213011,242.64,0.00014723,2]
[362961858,1748537220880,2182.95732239,0.00016,2]
[362961859,1748537220905,2817.04267761,0.00016,2]
[362961860,1748537231126,-349.87417434,0.00016061,2]
[362961861,1748537234560,-135.41582566,0.00016061,2]
[362961862,1748537234584,-56.67035566,0.000174,2]
[362961863,1748537236199,5000.0,0.00016,2]
[362961864,1748537262934,155.82367301,6.3e-07,2]
[362961865,1748537263129,155.82367301,6.3e-07,2]
[362961866,1748537263247,155.82367301,6.3e-07,2]
[362961867,1748537263390,155.82367301,6.3e-07,2]
[362961868,1748537263519,155.82367301,6.3e-07,2]
[362961869,1748537263649,155.82367301,6.3e-07,2]
[362961870,1748537263761,155.82367301,6.3e-07,2]
[362961871,1748537263873,155.82367301,6.3e-07,2]
[362961872,1748537263999,155.82367301,6.3e-07,2]
[362961873,1748537264140,155.82367301,6.3e-07,2]
[362961874,1748537286440,280.08,0.00014706,2]
[362961881,1748537345137,-560.16,0.00016043,2]
[362961882,1748537345160,-1237.06662807,0.00017226,2]
[362961884,1748537347125,-9.37567564,0.00017226,2]
[362961885,1748537347146,-144.28832436,0.0001738,2]
[362961886,1748537349886,670.35081451,0.00013699,2]
[362961887,1748537349909,272.48329849,0.00013699,2]
[362961888,1748537350091,-636.45466839,0.0001738,2]
[362961889,1748537355103,-4849.81137995,0.00017054,2]
[362961890,1748537355130,-150.18862005,0.00017054,2]
[362961891,1748537355151,-59.48700725,0.0001738,2]
[362961892,1748537355172,-300.0,0.00018313,2]
[362961893,1748537355193,-300.0,0.00018314,2]
[362961894,1748537355214,-1200.0,0.00018314,2]
[362961895,1748537355235,-300.0,0.00018314,2]
[362961896,1748537355256,-5762.013664,0.00018315,2]
[362961897,1748537355279,-1120.31,0.00018717,2]
[362961898,1748537355299,-347.37433277,0.000189,2]
[362961899,1748537355321,-157.62907976,0.00019077,2]
[362961900,1748537358604,250.61,0.00014708,2]
[362961901,1748537359022,501.21,0.00016045,2]
[362961902,1748537359486,751.82,0.00017382,2]
[362961903,1748537359870,1002.42,0.00018719,2]
[362961904,1748537362098,-424.4,0.00019168,3]
[362961905,1748537362119,-500.0,0.00019173,2]
[362961906,1748537362139,-297.7388577,0.00019176,2]
[362961907,1748537362158,-500.0,0.00019176,2]
[362961908,1748537362179,-500.0,0.00019176,2]
[362961909,1748537362199,-500.0,0.00019176,2]
[362961910,1748537362221,-500.0,0.00019176,2]
[362961911,1748537362244,-500.0,0.00019176,2]
[362961912,1748537362265,-500.0,0.00019176,2]
[362961913,1748537362286,-639.7601499,0.00019176,2]
[362961914,1748537362307,-500.0,0.00019176,2]
[362961915,1748537362343,-512.69413369,0.00019176,2]
[362961916,1748537362364,-371.72150007,0.00019176,2]
[362961917,1748537362386,-289.99994148,0.00019176,2]
[362961918,1748537362407,-500.0,0.00019177,2]
[362961919,1748537362429,-500.0,0.00019177,2]
[362961920,1748537362453,-893.12259386,0.00019177,2]
[362961921,1748537362480,-893.12259386,0.00019177,2]
[362961922,1748537362502,-243.5609371,0.00019177,2]
[362961923,1748537366928,2015.67192387,0.00018984,2]
[362961924,1748537429014,183.59,0.0001551,2]
[362961965,1748537432147,-367.18,0.0001692,2]
[362961967,1748537432157,-300.0,0.00018327,2]
[362961969,1748537432166,-388.0,0.00018327,2]
[362961971,1748537432176,-24900.0,0.00018328,2]
[362961973,1748537432185,-550.77,0.0001833,2]
[362961975,1748537432195,-2984.32807613,0.00018984,2]
[362961977,1748537432204,-43.37083732,0.00019177,2]
[362961979,1748537432213,-500.0,0.00019177,2]
[362961981,1748537432222,-893.12259386,0.00019177,2]
[362961983,1748537432231,-893.12259386,0.00019177,2]
[362961985,1748537432241,-893.12259386,0.00019177,2]
[362961987,1748537432250,-893.12259386,0.00019177,2]
[362961989,1748537432259,-893.12259386,0.00019177,2]
[362961991,1748537432269,-893.12259386,0.00019177,2]
[362961993,1748537432278,-376.55773672,0.00019177,2]
[362961995,1748537432291,-500.0,0.00019177,2]
[362961998,1748537432303,-893.12259386,0.00019177,2]
[362962000,1748537432315,-893.12259386,0.00019177,2]
[362962002,1748537432328,-500.0,0.00019177,2]
[362962005,1748537432340,-893.12259386,0.00019177,2]
[362962007,1748537432351,-893.12259386,0.00019177,2]
[362962009,1748537432362,-893.12259386,0.00019177,2]
[362962011,1748537432373,-893.12259386,0.00019177,2]
[362962012,1748537432385,-893.12259386,0.00019177,2]
[362962013,1748537432396,-893.12259386,0.00019177,2]
[362962014,1748537432408,-893.12259386,0.00019177,2]
[362962015,1748537432419,-1117.19043899,0.00019177,2]
[362962016,1748537432431,-1117.19043899,0.00019177,2]
[362962017,1748537432442,-1117.19043899,0.00019177,2]
[362962018,1748537432455,-1117.19043899,0.00019177,2]
[362962019,1748537432466,-1117.19043899,0.00019177,2]
[362962020,1748537432476,-1117.19043899,0.00019177,2]
[362962021,1748537432489,-1117.19043899,0.00019177,2]
[362962022,1748537432504,-1117.19043899,0.00019177,2]
[362962023,1748537432516,-1117.19043899,0.00019177,2]
[362962024,1748537432528,-1117.19043899,0.00019177,2]
[362962025,1748537432541,-430.0,0.00019178,2]
[362962026,1748537432552,-430.0,0.00019178,2]
[362962027,1748537432563,-430.0,0.00019178,2]
[362962028,1748537432575,-430.0,0.00019178,2]
[362962029,1748537432586,-430.0,0.00019178,2]
[362962030,1748537432596,-430.0,0.00019178,2]
[362962031,1748537432607,-430.0,0.00019178,2]
[362962032,1748537432619,-430.0,0.00019178,2]
[362962033,1748537432632,-510.0,0.00019178,2]
[362962034,1748537432644,-430.0,0.00019178,2]
[362962035,1748537432655,-430.0,0.00019178,2]
[362962036,1748537432666,-430.0,0.00019178,2]
[362962037,1748537432676,-430.0,0.00019178,2]
[362962038,1748537432686,-430.0,0.00019178,2]
[362962039,1748537432696,-430.0,0.00019178,2]
[362962040,1748537432708,-430.0,0.00019178,2]
[362962041,1748537432718,-430.0,0.00019178,2]
[362962042,1748537432729,-430.0,0.00019178,2]
[362962043,1748537432741,-430.0,0.00019178,2]
[362962044,1748537432752,-430.0,0.00019178,2]
[362962045,1748537432764,-430.0,0.00019178,2]
[362962046,1748537432775,-430.0,0.00019178,2]
[362962047,1748537432787,-430.0,0.00019178,2]
[362962048,1748537432798,-430.0,0.00019178,2]
[362962049,1748537432810,-430.0,0.00019178,2]
[362962050,1748537432822,-430.0,0.00019178,2]
[362962051,1748537432835,-430.0,0.00019178,2]
[362962052,1748537432849,-189.34039913,0.00019178,2]
[362962053,1748537432860,-430.0,0.00019178,2]
[362962054,1748537432870,-370.0,0.00019178,2]
[362962055,1748537432880,-430.0,0.00019178,2]
[362962056,1748537432890,-452.46780618,0.00019178,2]
[362962057,1748537432900,-345.58150225,0.00019178,2]
[362962058,1748537432910,-430.0,0.00019178,2]
[362962059,1748537432920,-440.0,0.00019178,2]
[362962060,1748537432932,-335.95932143,0.00019178,2]
[362962061,1748537432944,-423.22003313,0.00019178,2]
[362962062,1748537432957,-430.0,0.00019178,2]
[362962063,1748537432968,-430.0,0.00019178,2]
[362962064,1748537432980,-430.0,0.00019178,2]
[362962065,1748537432989,-430.0,0.00019178,2]
[362962066,1748537432999,-430.0,0.00019178,2]
[362962067,1748537433010,-430.0,0.00019178,2]
[362962068,1748537433021,-430.0,0.00019178,2]
[362962069,1748537433031,-430.0,0.00019178,2]
[362962070,1748537433045,-453.22447969,0.00019178,2]
[362962071,1748537433058,-430.0,0.00019178,2]
[362962072,1748537433069,-400.0,0.00019178,2]
[362962073,1748537433080,-452.77394375,0.00019178,2]
[362962074,1748537433091,-500.0,0.00019178,2]
[362962075,1748537433103,-430.0,0.00019178,2]
[362962076,1748537433113,-197.54617617,0.00019178,2]
[362962077,1748537433124,-430.0,0.00019178,2]
[362962078,1748537433135,-455.75747863,0.00019178,2]
[362962079,1748537433146,-347.37491403,0.00019178,2]
[362962080,1748537433158,-430.0,0.00019178,2]
[362962081,1748537433169,-430.0,0.00019178,2]
[362962082,1748537433180,-430.0,0.00019178,2]
[362962083,1748537433191,-430.0,0.00019178,2]
[362962084,1748537433203,-430.0,0.00019178,2]
[362962085,1748537433214,-430.0,0.00019178,2]
[362962086,1748537433224,-430.0,0.00019178,2]
[362962087,1748537433235,-430.0,0.00019178,2]
[362962088,1748537433246,-480.0,0.00019178,2]
[362962089,1748537433257,-430.0,0.00019178,2]
[362962090,1748537433269,-500.0,0.00019178,2]
[362962091,1748537433279,-430.0,0.00019178,2]
[362962092,1748537433291,-430.0,0.00019178,2]
[362962093,1748537433302,-380.34343014,0.00019178,2]
[362962094,1748537433314,-430.0,0.00019178,2]
[362962095,1748537433325,-540.0,0.00019178,2]
[362962096,1748537433336,-430.0,0.00019178,2]
[362962097,1748537433347,-430.0,0.00019178,2]
[362962098,1748537433358,-430.0,0.00019178,2]
[362962099,1748537433369,-276.78067423,0.00019178,2]
[362962100,1748537433380,-500.0,0.00019178,2]
[362962101,1748537433392,-430.0,0.00019178,2]
[362962102,1748537433403,-500.0,0.00019178,2]
[362962103,1748537433415,-500.0,0.00019178,2]
[362962104,1748537433426,-422.48675222,0.00019178,2]
[362962105,1748537433437,-500.0,0.00019178,2]
[362962106,1748537433449,-430.0,0.00019178,2]
[362962107,1748537433460,-430.0,0.00019178,2]
[362962108,1748537433472,-430.0,0.00019178,2]
[362962109,1748537433484,-430.0,0.00019178,2]
[362962110,1748537433498,-430.0,0.00019178,2]
[362962111,1748537433510,-430.0,0.00019178,2]
[362962112,1748537433521,-430.0,0.00019178,2]
[362962113,1748537433533,-430.0,0.00019178,2]
[362962114,1748537433545,-430.0,0.00019178,2]
[362962115,1748537433556,-430.0,0.00019178,2]
[362962116,1748537433568,-430.0,0.00019178,2]
[362962117,1748537433581,-430.0,0.00019178,2]
[362962118,1748537433593,-430.0,0.00019178,2]
[362962119,1748537433604,-430.0,0.00019178,2]
[362962120,1748537433616,-430.0,0.00019178,2]
[362962121,1748537433628,-420.0,0.00019178,2]
[362962122,1748537433639,-430.0,0.00019178,2]
[362962123,1748537433650,-430.0,0.00019178,2]
[362962124,1748537433662,-434.06892811,0.00019178,2]
[362962125,1748537433673,-430.0,0.00019178,2]
[362962126,1748537433685,-430.0,0.00019178,2]
[362962127,1748537433696,-400.0,0.00019178,2]
[362962128,1748537433708,-430.0,0.00019178,2]
[362962129,1748537433719,-500.0,0.00019178,2]
[362962130,1748537433731,-500.0,0.00019178,2]
[362962131,1748537433742,-500.0,0.00019178,2]
[362962132,1748537433753,-500.0,0.00019178,2]
[362962133,1748537433763,-430.0,0.00019178,2]
[362962134,1748537433775,-430.0,0.00019178,2]
[362962135,1748537433786,-430.0,0.00019178,2]
[362962136,1748537433797,-430.0,0.00019178,2]
[362962137,1748537433808,-430.0,0.00019178,2]
[362962138,1748537433820,-430.0,0.00019178,2]
[362962139,1748537433834,-430.0,0.00019178,2]
[362962140,1748537433845,-430.0,0.00019178,2]
[362962141,1748537433857,-430.0,0.00019178,2]
[362962142,1748537433868,-430.0,0.00019178,2]
[362962143,1748537433879,-430.0,0.00019178,2]
[362962144,1748537433890,-430.0,0.00019178,2]
[362962145,1748537434087,-401.01239599,0.00019178,2]
[362962146,1748537434099,-430.0,0.00019178,2]
[362962147,1748537434109,-110.81191229,0.00019178,2]
[362962148,1748537434243,-319.18808771,0.00019178,2]
[362962149,1748537434255,-574.68059444,0.00019178,2]
[362962150,1748537434265,-430.0,0.00019178,2]
[362962151,1748537434275,-430.0,0.00019178,2]
[362962152,1748537434286,-430.0,0.00019178,2]
[362962153,1748537434296,-430.0,0.00019178,2]
[362962154,1748537434306,-550.0769539,0.00019178,2]
[362962155,1748537434316,-412.43154475,0.00019178,2]
[362962156,1748537434326,-430.0,0.00019178,2]
[362962157,1748537434336,-430.0,0.00019178,2]
[362962158,1748537434346,-430.0,0.00019178,2]
[362962159,1748537434356,-430.0,0.00019178,2]
[362962160,1748537434367,-430.0,0.00019178,2]
[362962161,1748537434378,-306.35003313,0.00019178,2]
[362962162,1748537434388,-430.0,0.00019178,2]
[362962163,1748537434398,-430.0,0.00019178,2]
[362962164,1748537434408,-430.0,0.00019178,2]
[362962165,1748537434418,-430.0,0.00019178,2]
[362962166,1748537434428,-430.0,0.00019178,2]
[362962167,1748537434440,-430.0,0.00019178,2]
[362962168,1748537434450,-507.47,0.00019178,2]
[362962169,1748537434460,-450.0,0.00019178,2]
[362962170,1748537434470,-430.0,0.00019178,2]
[362962171,1748537434480,-400.88195381,0.00019178,2]
[362962172,1748537434494,-430.0,0.00019178,2]
[362962173,1748537434503,-430.0,0.00019178,2]
[362962174,1748537434513,-430.0,0.00019178,2]
[362962175,1748537434522,-430.0,0.00019178,2]
[362962176,1748537434532,-430.0,0.00019178,2]
[362962177,1748537434541,-407.3406,0.00019178,2]
[362962178,1748537434550,-430.0,0.00019178,2]
[362962179,1748537434560,-430.0,0.00019178,2]
[362962180,1748537434572,-409.61511835,0.00019178,2]
[362962181,1748537434583,-403.35052902,0.00019178,2]
[362962182,1748537434593,-430.0,0.00019178,2]
[362962183,1748537434603,-430.0,0.00019178,2]
[362962184,1748537434612,-430.0,0.00019178,2]
[362962185,1748537434622,-430.0,0.00019178,2]
[362962186,1748537434631,-403.10926114,0.00019178,2]
[362962187,1748537434640,-450.0,0.00019178,2]
[362962188,1748537434650,-430.0,0.00019178,2]
[362962189,1748537434659,-430.0,0.00019178,2]
[362962190,1748537434669,-430.0,0.00019178,2]
[362962191,1748537434678,-430.0,0.00019178,2]
[362962192,1748537434688,-400.0,0.00019178,2]
[362962193,1748537434697,-430.0,0.00019178,2]
[362962194,1748537434706,-430.0,0.00019178,2]
[362962195,1748537434716,-430.0,0.00019178,2]
[362962196,1748537434725,-403.62305558,0.00019178,2]
[362962197,1748537434735,-430.0,0.00019178,2]
[362962198,1748537434744,-430.0,0.00019178,2]
[362962199,1748537434753,-212.23,0.00019178,2]
[362962200,1748537434762,-430.0,0.00019178,2]
[362962201,1748537434771,-430.0,0.00019178,2]
[362962202,1748537434780,-430.0,0.00019178,2]
[362962203,1748537434790,-430.0,0.00019178,2]
[362962204,1748537434799,-430.0,0.00019178,2]
[362962205,1748537434808,-430.0,0.00019178,2]
[362962206,1748537434817,-430.0,0.00019178,2]
[362962207,1748537434827,-402.52947357,0.00019178,2]
[362962208,1748537434837,-430.0,0.00019178,2]
[362962209,1748537434846,-430.0,0.00019178,2]
[362962210,1748537434855,-430.0,0.00019178,2]
[362962211,1748537434865,-430.0,0.00019178,2]
[362962212,1748537434874,-390.0,0.00019178,2]
[362962213,1748537434883,-430.0,0.00019178,2]
[362962214,1748537434892,-430.0,0.00019178,2]
[362962215,1748537434901,-400.44101049,0.00019178,2]
[362962216,1748537434911,-625.32,0.00019178,2]
[362962217,1748537434920,-437.51963141,0.00019178,2]
[362962218,1748537434929,-534.32,0.00019178,2]
[362962219,1748537434938,-430.0,0.00019178,2]
[362962220,1748537434947,-430.0,0.00019178,2]
[362962221,1748537434956,-400.0,0.00019178,2]
[362962222,1748537434966,-430.0,0.00019178,2]
[362962223,1748537434975,-430.0,0.00019178,2]
[362962224,1748537434984,-500.0,0.00019178,2]
[362962225,1748537434994,-500.0,0.00019178,2]
[362962226,1748537435002,-430.0,0.00019178,2]
[362962227,1748537435011,-500.0,0.00019178,2]
[362962228,1748537435019,-500.0,0.00019178,2]
[362962229,1748537435027,-430.0,0.00019178,2]
[362962230,1748537435036,-500.0,0.00019178,2]
[362962231,1748537435046,-430.0,0.00019178,2]
[362962232,1748537435054,-322.78,0.00019178,2]
[362962233,1748537435062,-447.31,0.00019178,2]
[362962234,1748537435070,-430.0,0.00019178,2]
[362962235,1748537435079,-430.0,0.00019178,2]
[362962236,1748537435088,-430.0,0.00019178,2]
[362962237,1748537435097,-430.0,0.00019178,2]
[362962238,1748537435104,-400.0,0.00019178,2]
[362962239,1748537435113,-430.0,0.00019178,2]
[362962240,1748537435122,-430.0,0.00019178,2]
[362962241,1748537435130,-430.0,0.00019178,2]
[362962242,1748537435139,-430.0,0.00019178,2]
[362962243,1748537435148,-430.0,0.00019178,2]
[362962244,1748537435157,-430.0,0.00019178,2]
[362962245,1748537435166,-430.0,0.00019178,2]
[362962246,1748537435175,-431.25416698,0.00019178,2]
[362962247,1748537435184,-430.0,0.00019178,2]
[362962248,1748537435194,-430.0,0.00019178,2]
[362962249,1748537435205,-430.0,0.00019178,2]
[362962250,1748537435215,-430.0,0.00019178,2]
[362962251,1748537435225,-430.0,0.00019178,2]
[362962252,1748537435234,-1577.09,0.00019178,2]
[362962253,1748537435244,-430.0,0.00019178,2]
[362962254,1748537435253,-490.0,0.00019178,2]
[362962255,1748537435263,-507.88493114,0.00019178,2]
[362962256,1748537435272,-430.0,0.00019178,2]
[362962257,1748537435282,-3728.52,0.00019178,2]
[362962258,1748537435291,-430.0,0.00019178,2]
[362962259,1748537435300,-430.0,0.00019178,2]
[362962260,1748537435309,-226.0858518,0.00019178,2]
[362962261,1748537435319,-430.0,0.00019178,2]
[362962262,1748537435329,-430.0,0.00019178,2]
[362962263,1748537435339,-430.0,0.00019178,2]
[362962264,1748537435348,-430.0,0.00019178,2]
[362962265,1748537435358,-637.94,0.00019178,2]
[362962266,1748537435367,-430.0,0.00019178,2]
[362962267,1748537435377,-430.0,0.00019178,2]
[362962268,1748537435387,-430.0,0.00019178,2]
[362962269,1748537435397,-557.80321957,0.00019178,2]
[362962270,1748537435406,-430.0,0.00019178,2]
[362962271,1748537435416,-430.0,0.00019178,2]
[362962272,1748537435426,-430.0,0.00019178,2]
[362962273,1748537435436,-282.22395659,0.00019178,2]
[362962274,1748537435446,-430.0,0.00019178,2]
[362962275,1748537435456,-430.0,0.00019178,2]
[362962276,1748537435465,-406.69462422,0.00019178,2]
[362962277,1748537435475,-495.98,0.00019178,2]
[362962278,1748537435484,-430.0,0.00019178,2]
[362962279,1748537435496,-430.0,0.00019178,2]
[362962280,1748537435506,-430.0,0.00019178,2]
[362962281,1748537435515,-430.0,0.00019178,2]
[362962282,1748537435525,-430.0,0.00019178,2]
[362962283,1748537435534,-430.0,0.00019178,2]
[362962284,1748537435545,-297.89612576,0.00019178,2]
[362962285,1748537435554,-430.0,0.00019178,2]
[362962286,1748537435564,-430.0,0.00019178,2]
[362962287,1748537435573,-430.0,0.00019178,2]
[362962288,1748537435584,-430.0,0.00019178,2]
[362962289,1748537435593,-430.0,0.00019178,2]
[362962290,1748537435603,-336.28630845,0.00019178,2]
[362962291,1748537435612,-430.0,0.00019178,2]
[362962292,1748537435622,-430.0,0.00019178,2]
[362962293,1748537435631,-400.0,0.00019178,2]
[362962294,1748537435640,-430.0,0.00019178,2]
[362962295,1748537435650,-430.0,0.00019178,2]
[362962296,1748537435660,-430.0,0.00019178,2]
[362962297,1748537435669,-1078.54,0.00019178,2]
[362962298,1748537435678,-430.0,0.00019178,2]
[362962299,1748537435687,-430.0,0.00019178,2]
[362962300,1748537435696,-430.0,0.00019178,2]
[362962301,1748537435706,-516.17,0.00019178,2]
[362962302,1748537435715,-430.0,0.00019178,2]
[362962303,1748537435724,-400.59629711,0.00019178,2]
[362962304,1748537435733,-430.0,0.00019178,2]
[362962305,1748537435743,-430.0,0.00019178,2]
[362962306,1748537435752,-430.0,0.00019178,2]
[362962307,1748537435762,-430.0,0.00019178,2]
[362962308,1748537435771,-430.0,0.00019178,2]
[362962309,1748537435781,-430.0,0.00019178,2]
[362962310,1748537435790,-430.0,0.00019178,2]
[362962311,1748537435800,-1256.97,0.00019178,2]
[362962312,1748537435810,-408.09044017,0.00019178,2]
[362962313,1748537435819,-430.0,0.00019178,2]
[362962314,1748537435830,-430.0,0.00019178,2]
[362962315,1748537435840,-430.0,0.00019178,2]
[362962316,1748537435849,-430.0,0.00019178,2]
[362962317,1748537435859,-402.06613217,0.00019178,2]
[362962318,1748537435868,-400.63354523,0.00019178,2]
[362962319,1748537435877,-430.0,0.00019178,2]
[362962320,1748537435887,-441.02540797,0.00019178,2]
[362962321,1748537435896,-430.0,0.00019178,2]
[362962322,1748537435905,-430.0,0.00019178,2]
[362962323,1748537435915,-430.0,0.00019178,2]
[362962324,1748537435923,-400.0,0.00019178,2]
[362962325,1748537435934,-255.91969351,0.00019178,2]
[362962326,1748537435943,-430.0,0.00019178,2]
[362962327,1748537435953,-431.85,0.00019178,2]
[362962328,1748537435963,-402.7155122,0.00019178,2]
[362962329,1748537435972,-430.0,0.00019178,2]
[362962330,1748537435982,-430.0,0.00019178,2]
[362962331,1748537435991,-430.0,0.00019178,2]
[362962332,1748537436001,-430.0,0.00019178,2]